[Event "FIDE World Cadets GU12 2022"]
[Site "Batumi"]
[Date "2022.09.16"]
[Round "1"]
[White "Ismayilova, Khanim"]
[Black "Sordia, Marta"]
[Result "1-0"]
[ECO "A26"]
[WhiteElo "1901"]
[BlackElo "1363"]
[Annotator "TA"]
[PlyCount "67"]
[EventDate "2022.09.16"]
[EventType "swiss"]
[EventCountry "GEO"]
[SourceTitle "playchess.com"]
[Source "ChessBase"]
[SourceQuality "1"]
[TimeControl "5400+30"]

{[%evp 15,67,0,19,14,23,19,89,99,106,92,108,116,160,128,125,120,180,168,170,141,164,63,67,57,274,207,244,152,239,243,236,245,244,234,283,283,350,343,366,374,375,384,491,460,470,467,1020,1141,1128,984,1539,1474,1557,1539]} 1. c4 {[%emt 0:01:00]} e5 {[%emt 0:01:00]} 2. Nc3 {[%emt 0:00:30]} Nf6 {[%emt 0:00:30]} 3. Nf3 {[%emt 0:00:30]} Nc6 {[%emt 0:00:00]} 4. e4 {[%emt 0:04:30]} d6 {[%emt 0:04:00]} 5. g3 {[%emt 0:01:30]} g6 {[%emt 0:01:30]} 6. Bg2 {[%emt 0:00:30]} Bg7 7. O-O {[%emt 0:00:30]} O-O {[%emt 0:01:00]} 8. d3 {[%emt 0:02:30]} h6 {[%emt 0:04:30]} 9. Be3 {[%emt 0:01:30] A26: English Opening vs King's Indian with ...Nc6 and d3.} Ng4 {[%emt 0:01:30] [#]} 10. Bd2 $146 {[%emt 0:09:30]} ({Predecessor:} 10. h3 Nxe3 11. fxe3 Be6 12. Nd5 Qd7 13. Kh2 Nd8 14. Qb3 c6 15. Nc3 f5 16. Nh4 Kh7 17. exf5 gxf5 {1-0 (29) Polek,M-Guenther,L freechess.de 2018}) 10... f5 {[%emt 0:05:30]} (10... Bd7 $11 {remains equal.}) 11. Nh4 $16 {[%emt 0:08:30] White is better.} Kh7 {[%emt 0:06:30]} 12. exf5 {[%emt 0:09:30]} gxf5 {[%emt 0:06:30]} 13. Bh3 {[%emt 0:08:30]} Bf6 {[%emt 0:12:30] [#]} 14. Nxf5 {[%emt 0:06:30][%mdl 512]} Bxf5 {[%emt 0:00:00]} 15. Bxg4 {[%emt 0:00:30]} Bg5 {[%emt 0:11:00]} (15... Qc8 $16 {was called for.}) 16. Bxf5+ $18 {[%emt 0:09:30]} Rxf5 {[%emt 0:00:30]} 17. Qg4 {[%emt 0:00:30]} Nd4 {[%emt 0:05:30] [#]} 18. Be3 {[%emt 0:02:30]} ({Only move:} 18. f4 $1 $18 {[%cal Rf4g5]} Qd7 19. Nd5) 18... Nf3+ $14 {[%emt 0:04:30]} 19. Kg2 {[%emt 0:00:30]} Qf8 {[%emt 0:02:30] This move loses the game for Black.} ({Better is} 19... Qd7 $14) 20. Qe4 {[%emt 0:12:52]} Kg7 {[%emt 0:07:30]} 21. Nb5 {[%emt 0:01:29]} (21. Qxb7 Bxe3 22. fxe3 Rb8 23. Qxc7+ Rf7 24. Rxf3 Rxb2+ 25. Kh3 Rxc7 $15) 21... Rf7 {[%emt 0:04:30] [#]} (21... Qf7 $16 {was worth a try.}) 22. Nxc7 $1 $18 {[%emt 0:03:31][%mdl 512] Chess con chili.} Rxc7 {[%emt 0:02:05]} 23. Qxf3 {[%emt 0:00:06]} Qxf3+ {[%emt 0:02:16]} 24. Kxf3 {[%emt 0:00:05]} Rf8+ {[%emt 0:03:13]} 25. Ke4 {[%emt 0:01:08]} Rcf7 {[%emt 0:03:09]} 26. Bxa7 {[%emt 0:02:16]} b5 {[%emt 0:02:54]} 27. Be3 {[%emt 0:00:40]} ({Weaker is} 27. cxb5 Rxa7 28. a4 Rfa8 $16) 27... Bxe3 {[%emt 0:00:51]} 28. Kxe3 {[%emt 0:00:06][%mdl 4096] Endgame KRR-KRR} Rf3+ {[%emt 0:00:54]} 29. Ke4 {[%emt 0:00:37] White is clearly winning.} bxc4 {[%emt 0:00:31]} 30. dxc4 {[%emt 0:00:16]} Rxf2 {[%emt 0:00:11]} (30... h5 $142 31. a4 Rb3) 31. Rxf2 {[%emt 0:00:36]} Rxf2 {[%emt 0:00:30]} 32. b4 {[%emt 0:00:43][%cal Bb2b4,Bb4b5][%mdl 32]} Rb2 {[%emt 0:01:03]} 33. b5 {[%emt 0:00:17]} Rb4 {[%emt 0:00:31]} 34. Kd5 {[%emt 0:00:13] Weighted Error Value: White=0.21 (precise) /Black=0.46} 1-0

[Event "FIDE World Cadets GU12 2022"]
[Site "Batumi"]
[Date "2022.09.16"]
[Round "1"]
[White "Aravindakshan, Sahana"]
[Black "Semenova, Vasilisa"]
[Result "0-1"]
[ECO "D36"]
[WhiteElo "1776"]
[BlackElo "1332"]
[Annotator "NA COMBH"]
[PlyCount "140"]
[EventDate "2022.09.16"]
[EventType "swiss"]
[EventCountry "GEO"]
[SourceTitle "playchess.com"]
[Source "ChessBase"]
[SourceQuality "1"]
[TimeControl "5400+30"]

1. d4 {[%emt 0:01:00]} d5 {[%emt 0:01:00]} 2. c4 {[%emt 0:00:30]} e6 {[%emt 0:00:30]} 3. Nc3 {[%emt 0:00:30]} Nf6 {[%emt 0:00:30]} 4. cxd5 {[%emt 0:00:30]} exd5 {[%emt 0:00:30]} 5. Bg5 {[%emt 0:00:30]} Be7 {[%emt 0:00:30]} 6. e3 {[%emt 0:00:00]} c6 {[%emt 0:00:00]} 7. Bd3 {[%emt 0:00:00]} Nbd7 {[%emt 0:00:00]} 8. Nge2 {[%emt 0:00:00]} O-O {[%emt 0:00:00]} 9. Qc2 {[%emt 0:00:00]} h6 {[%emt 0:00:00]} 10. Bh4 {[%emt 0:00:00]} Re8 {[%emt 0:00:00]} 11. O-O {[%emt 0:00:00]} Ne4 {[%emt 0:01:00]} 12. Bxe7 {[%emt 0:01:30]} Qxe7 {[%emt 0:00:00]} 13. Rae1 {[%emt 0:00:30]} Ndf6 {[%emt 0:00:00]} 14. f3 {[%emt 0:03:30]} Nxc3 {[%emt 0:00:30]} 15. Nxc3 {[%emt 0:00:30]} c5 {[%emt 0:05:30]} 16. dxc5 {[%emt 0:09:30]} Qxc5 {[%emt 0:00:00]} 17. Qf2 {[%emt 0:08:30]} Be6 {[%emt 0:02:00]} 18. Nb5 {[%emt 0:05:30]} Rac8 {[%emt 0:06:30]} 19. Nd4 {[%emt 0:02:30]} Nd7 {[%emt 0:14:30]} 20. Bf5 {[%emt 0:13:30]} Bxf5 {[%emt 0:04:30]} 21. Nxf5 {[%emt 0:00:30]} Re5 {[%emt 0:00:30]} 22. Nd4 {[%emt 0:01:30]} Nb8 {[%emt 0:05:30]} 23. f4 {[%emt 0:05:30]} Ree8 {[%emt 0:01:30]} 24. Qg3 {[%emt 0:03:30]} Qb6 {[%emt 0:07:30]} 25. Nf5 {[%emt 0:10:30]} Qf6 {[%emt 0:00:30]} 26. Qg4 {[%emt 0:02:30]} Nc6 {[%emt 0:00:30]} 27. Rc1 {[%emt 0:01:30]} Rcd8 {[%emt 0:00:30]} 28. Rfe1 {[%emt 0:04:30]} Ne7 {[%emt 0:00:30]} 29. Ng3 {[%emt 0:01:30]} Qg6 {[%emt 0:01:30]} 30. Qh3 {[%emt 0:04:30]} Nc6 {[%emt 0:08:30]} 31. f5 {[%emt 0:01:30]} Qg5 {[%emt 0:01:30]} 32. Nh5 {[%emt 0:01:24]} Re4 {[%emt 0:02:30]} 33. Nf4 {[%emt 0:03:37]} d4 {[%emt 0:01:30]} 34. Qf3 {[%emt 0:05:17]} Rxe3 {[%emt 0:00:30]} 35. Rxe3 {[%emt 0:00:42]} dxe3 {[%emt 0:00:30]} 36. Qxe3 {[%emt 0:00:30]} Qxf5 {[%emt 0:00:00]} 37. Rf1 {[%emt 0:00:48]} Qe5 {[%emt 0:03:00]} 38. Qb3 {[%emt 0:02:10]} Na5 {[%emt 0:00:30]} 39. Qf3 {[%emt 0:01:02]} Qc5+ {[%emt 0:02:30]} 40. Kh1 {[%emt 0:00:20]} Qc6 {[%emt 0:00:00]} 41. Qg3 {[%emt 0:01:44]} Qb5 {[%emt 0:01:00]} 42. Qf2 {[%emt 0:01:02]} Qb6 {[%emt 0:00:00]} 43. Qe2 {[%emt 0:01:38]} Qc5 {[%emt 0:01:00]} 44. Qf3 {[%emt 0:01:22]} Qc6 {[%emt 0:00:30]} 45. Qg3 {[%emt 0:00:43]} Qb5 {[%emt 0:01:30]} 46. Qf2 {[%emt 0:00:48]} Qb6 {[%emt 0:02:30]} 47. Qe1 {[%emt 0:01:57]} Qc7 {[%emt 0:00:30]} 48. Nd5 {[%emt 0:00:37]} Qd7 {[%emt 0:04:30]} 49. Ne7+ {[%emt 0:01:01]} Kh8 {[%emt 0:01:30]} 50. Nf5 {[%emt 0:00:49]} Nc6 {[%emt 0:05:30]} 51. Qg3 {[%emt 0:00:33]} Qxf5 {[%emt 0:00:30]} 52. Qe1 {[%emt 0:00:59]} Qe6 {[%emt 0:00:55]} 53. Qb1 {[%emt 0:00:53]} Qe2 {[%emt 0:01:05]} 54. Re1 {[%emt 0:00:31]} Qd3 {[%emt 0:00:15]} 55. Qc1 {[%emt 0:00:36]} Qd2 {[%emt 0:00:43]} 56. Qb1 {[%emt 0:00:28]} Nb4 {[%emt 0:00:38]} 57. a3 {[%emt 0:00:30]} Nc2 {[%emt 0:00:00]} 58. Rf1 {[%emt 0:00:45]} Ne3 {[%emt 0:00:27]} 59. Rg1 {[%emt 0:00:00]} Ng4 {[%emt 0:01:09]} 60. h3 {[%emt 0:00:33]} Nf2+ {[%emt 0:02:32]} 61. Kh2 {[%emt 0:00:04]} Rd3 {[%emt 0:01:07]} 62. Re1 {[%emt 0:01:12]} Qf4+ {[%emt 0:00:18]} 63. Kg1 {[%emt 0:00:20]} Nxh3+ {[%emt 0:00:37]} 64. Kh1 {[%emt 0:00:50]} Nf2+ {[%emt 0:01:05]} 65. Kg1 {[%emt 0:00:11]} Qd4 {[%emt 0:00:22]} 66. Kh2 {[%emt 0:00:55]} Qh4+ {[%emt 0:03:37]} 67. Kg1 {[%emt 0:00:13]} Nh3+ {[%emt 0:00:21]} 68. gxh3 {[%emt 0:01:01]} Qg3+ {[%emt 0:00:08]} 69. Kf1 {[%emt 0:00:39]} Qxh3+ {[%emt 0:00:39]} 70. Kf2 {[%emt 0:00:09]} Qh2+ {[%emt 0:00:12]} 0-1

[Event "FIDE World Cadets GU12 2022"]
[Site "Batumi"]
[Date "2022.09.16"]
[Round "1"]
[White "Yousefian, Maedeh"]
[Black "Silva, Juliana Figueira The"]
[Result "1-0"]
[ECO "B21"]
[WhiteElo "1765"]
[BlackElo "1328"]
[Annotator "NA COMBH"]
[PlyCount "119"]
[EventDate "2022.09.16"]
[EventType "swiss"]
[EventCountry "GEO"]
[SourceTitle "playchess.com"]
[Source "ChessBase"]
[SourceQuality "1"]
[TimeControl "5400+30"]

1. e4 {[%emt 0:01:00]} c5 {[%emt 0:01:00]} 2. d4 {[%emt 0:00:30]} cxd4 {[%emt 0:00:30]} 3. c3 {[%emt 0:00:00]} dxc3 {[%emt 0:00:30]} 4. Nxc3 {[%emt 0:00:00]} d6 {[%emt 0:00:30]} 5. Bc4 {[%emt 0:00:00]} Nf6 {[%emt 0:00:30]} 6. e5 {[%emt 0:03:00]} Nfd7 {[%emt 0:06:30]} 7. exd6 {[%emt 0:12:30]} exd6 {[%emt 0:01:30]} 8. Bf4 {[%emt 0:06:30]} Nb6 {[%emt 0:02:30]} 9. Bb3 {[%emt 0:03:30]} Be6 {[%emt 0:03:30]} 10. Nb5 {[%emt 0:04:30]} a6 {[%emt 0:07:30]} 11. Nxd6+ {[%emt 0:04:30]} Bxd6 {[%emt 0:00:30]} 12. Bxd6 {[%emt 0:01:30]} Nd5 {[%emt 0:04:30]} 13. Bxb8 {[%emt 0:18:30]} Rxb8 {[%emt 0:00:30]} 14. Qd2 {[%emt 0:01:30]} Nf6 {[%emt 0:03:30]} 15. Qxd8+ {[%emt 0:01:30]} Rxd8 {[%emt 0:00:30]} 16. Bxe6 {[%emt 0:00:30]} fxe6 {[%emt 0:00:30]} 17. Nf3 {[%emt 0:00:00]} O-O {[%emt 0:00:30]} 18. O-O {[%emt 0:01:00]} Rfe8 {[%emt 0:00:30]} 19. Rfe1 {[%emt 0:00:30]} h6 {[%emt 0:01:30]} 20. Re2 {[%emt 0:01:30]} Nd7 {[%emt 0:03:30]} 21. b4 {[%emt 0:01:30]} Kf7 {[%emt 0:00:30]} 22. Rae1 {[%emt 0:00:30]} Kf6 {[%emt 0:02:30]} 23. Nd2 {[%emt 0:03:30]} Kf7 {[%emt 0:04:30]} 24. Ne4 {[%emt 0:01:30]} Ne5 {[%emt 0:01:30]} 25. Nc5 {[%emt 0:12:30]} Nd3 {[%emt 0:00:30]} 26. Nxb7 {[%emt 0:02:23]} Nxe1 {[%emt 0:02:30]} 27. Nxd8+ {[%emt 0:00:30]} Rxd8 {[%emt 0:00:30]} 28. Rxe1 {[%emt 0:00:30]} Rd2 {[%emt 0:01:30]} 29. Ra1 {[%emt 0:00:00]} e5 {[%emt 0:00:30]} 30. Kf1 {[%emt 0:00:50]} Ke6 {[%emt 0:00:00]} 31. a3 {[%emt 0:01:56]} g6 {[%emt 0:03:00]} 32. Re1 {[%emt 0:00:30]} Kd5 {[%emt 0:01:30]} 33. Re3 {[%emt 0:00:44]} h5 {[%emt 0:00:30]} 34. h4 {[%emt 0:05:14]} Ra2 {[%emt 0:01:30]} 35. Rg3 {[%emt 0:01:50]} Ke4 {[%emt 0:00:30]} 36. Re3+ {[%emt 0:00:59]} Kd4 {[%emt 0:01:30]} 37. Kg1 {[%emt 0:00:41]} Ra1+ {[%emt 0:00:30]} 38. Kh2 {[%emt 0:00:08]} Ra2 {[%emt 0:00:30]} 39. Rf3 {[%emt 0:01:49]} e4 {[%emt 0:00:30]} 40. Rf6 {[%emt 0:00:30]} Rxa3 {[%emt 0:00:30]} 41. Rxg6 {[%emt 0:00:00]} Ra2 {[%emt 0:00:30]} 42. Kg3 {[%emt 0:03:07]} Kc4 {[%emt 0:01:30]} 43. Rg5 {[%emt 0:01:25]} Kxb4 {[%emt 0:00:30]} 44. Rxh5 {[%emt 0:00:30]} a5 {[%emt 0:00:00]} 45. Rh8 {[%emt 0:00:23]} a4 {[%emt 0:00:00]} 46. h5 {[%emt 0:02:32]} Ra1 {[%emt 0:01:30]} 47. Kf4 {[%emt 0:04:33]} Rg1 {[%emt 0:00:30]} 48. g4 {[%emt 0:00:40]} a3 {[%emt 0:00:30]} 49. h6 {[%emt 0:00:41]} a2 {[%emt 0:00:30]} 50. Ra8 {[%emt 0:00:06]} a1=Q {[%emt 0:00:00]} 51. Rxa1 {[%emt 0:00:30]} Rxa1 {[%emt 0:00:00]} 52. g5 {[%emt 0:00:23]} Ra6 {[%emt 0:00:30]} 53. h7 {[%emt 0:00:30]} Ra8 {[%emt 0:00:30]} 54. g6 {[%emt 0:00:30]} Rf8+ {[%emt 0:00:00]} 55. Kxe4 {[%emt 0:00:00]} Re8+ {[%emt 0:00:00]} 56. Kf5 {[%emt 0:00:17]} Rf8+ {[%emt 0:00:30]} 57. Kg5 {[%emt 0:00:00]} Rd8 {[%emt 0:00:30]} 58. g7 {[%emt 0:00:00]} Rd5+ {[%emt 0:00:00]} 59. Kf4 {[%emt 0:00:14]} Rd4+ {[%emt 0:00:00]} 60. Ke5 {[%emt 0:00:00]} 1-0

[Event "FIDE World Cadets GU12 2022"]
[Site "Batumi"]
[Date "2022.09.16"]
[Round "1"]
[White "Garcia Rodriguez, Laia"]
[Black "Mateeva, Yana"]
[Result "0-1"]
[ECO "B00"]
[WhiteElo "1742"]
[BlackElo "1306"]
[Annotator "NA COMBH"]
[PlyCount "86"]
[EventDate "2022.09.16"]
[EventType "swiss"]
[EventCountry "GEO"]
[SourceTitle "playchess.com"]
[Source "ChessBase"]
[SourceQuality "1"]
[TimeControl "5400+30"]

1. e4 {[%emt 0:01:00]} a6 {[%emt 0:01:00]} 2. Nc3 {[%emt 0:00:30]} b5 {[%emt 0:00:30]} 3. a3 {[%emt 0:00:30]} Bb7 {[%emt 0:01:30]} 4. g3 {[%emt 0:02:30]} e6 {[%emt 0:14:30]} 5. Bg2 {[%emt 0:00:30]} Nc6 {[%emt 0:11:30]} 6. Nge2 {[%emt 0:04:30]} Rb8 {[%emt 0:08:30]} 7. O-O {[%emt 0:03:30]} Nf6 {[%emt 0:05:30]} 8. d3 {[%emt 0:01:30]} Be7 {[%emt 0:03:30]} 9. h3 {[%emt 0:05:30]} O-O {[%emt 0:07:30]} 10. f4 {[%emt 0:00:30]} d5 {[%emt 0:04:30]} 11. e5 {[%emt 0:07:30]} Nd7 {[%emt 0:00:30]} 12. d4 {[%emt 0:00:30]} Na7 {[%emt 0:03:30]} 13. g4 {[%emt 0:05:30]} c5 {[%emt 0:08:30]} 14. Be3 {[%emt 0:06:30]} Nc6 {[%emt 0:06:30]} 15. Kh1 {[%emt 0:08:30]} cxd4 {[%emt 0:03:06]} 16. Nxd4 {[%emt 0:00:30]} Nxd4 {[%emt 0:00:24]} 17. Bxd4 {[%emt 0:00:30]} Bc5 {[%emt 0:00:30]} 18. Bxc5 {[%emt 0:17:30]} Nxc5 {[%emt 0:00:40]} 19. Qd4 {[%emt 0:00:30]} Qb6 {[%emt 0:02:45]} 20. Qd2 {[%emt 0:06:30]} b4 {[%emt 0:01:58]} 21. Ne2 {[%emt 0:06:54]} bxa3 {[%emt 0:03:14]} 22. bxa3 {[%emt 0:00:11]} Ne4 {[%emt 0:00:24]} 23. Qe1 {[%emt 0:06:07]} Rfc8 {[%emt 0:03:30]} 24. c3 {[%emt 0:04:52]} Qb2 {[%emt 0:01:00]} 25. f5 {[%emt 0:01:23]} Qxe2 {[%emt 0:00:38]} 26. Qxe2 {[%emt 0:07:08]} Ng3+ {[%emt 0:00:37]} 27. Kh2 {[%emt 0:00:30]} Nxe2 {[%emt 0:00:00]} 28. Rf2 {[%emt 0:01:22]} Nxc3 {[%emt 0:00:16]} 29. Raf1 {[%emt 0:00:15]} d4 {[%emt 0:03:12]} 30. fxe6 {[%emt 0:00:36]} fxe6 {[%emt 0:00:00]} 31. Rd2 {[%emt 0:01:15]} Bxg2 {[%emt 0:00:31]} 32. Kxg2 {[%emt 0:00:21]} Rc4 {[%emt 0:00:33]} 33. Rf4 {[%emt 0:00:41]} Nb5 {[%emt 0:00:37]} 34. Kg3 {[%emt 0:00:55]} Rc3+ {[%emt 0:00:30]} 35. Rf3 {[%emt 0:00:00]} Rxf3+ {[%emt 0:01:04]} 36. Kxf3 {[%emt 0:00:29]} Rd8 {[%emt 0:00:36]} 37. a4 {[%emt 0:00:11]} Nc3 {[%emt 0:00:11]} 38. Kg2 {[%emt 0:00:37]} Nxa4 {[%emt 0:00:21]} 39. Ra2 {[%emt 0:00:26]} d3 {[%emt 0:00:30]} 40. Rd2 {[%emt 0:00:30]} Nc5 {[%emt 0:00:05]} 41. Kf3 {[%emt 0:00:32]} Nb3 {[%emt 0:00:30]} 42. Rd1 {[%emt 0:00:30]} d2 {[%emt 0:00:00]} 43. Ke2 {[%emt 0:00:00]} Rc8 0-1

[Event "FIDE World Cadets GU12 2022"]
[Site "Batumi"]
[Date "2022.09.16"]
[Round "1"]
[White "Negre, Emilie"]
[Black "Danielyan, Lilia"]
[Result "1/2-1/2"]
[ECO "B38"]
[WhiteElo "1722"]
[BlackElo "1299"]
[Annotator "NA COMBH"]
[PlyCount "90"]
[EventDate "2022.09.16"]
[EventType "swiss"]
[EventCountry "GEO"]
[SourceTitle "playchess.com"]
[Source "ChessBase"]
[SourceQuality "1"]
[TimeControl "5400+30"]

1. c4 {[%emt 0:01:00]} Nf6 {[%emt 0:01:00]} 2. Nf3 {[%emt 0:00:30]} g6 {[%emt 0:00:30]} 3. Nc3 {[%emt 0:00:30]} c5 {[%emt 0:00:30]} 4. d4 {[%emt 0:00:30]} cxd4 {[%emt 0:00:00]} 5. Nxd4 {[%emt 0:00:00]} Bg7 {[%emt 0:00:00]} 6. e4 {[%emt 0:00:00]} d6 {[%emt 0:00:00]} 7. Be2 {[%emt 0:02:30]} O-O {[%emt 0:01:00]} 8. Be3 {[%emt 0:00:30]} Nc6 {[%emt 0:11:30]} 9. O-O {[%emt 0:06:30]} h5 {[%emt 0:06:30]} 10. Qd2 {[%emt 0:07:30]} Kh7 {[%emt 0:04:30]} 11. Rfd1 {[%emt 0:14:30]} Bd7 {[%emt 0:06:30]} 12. Nc2 {[%emt 0:05:30]} Ng4 {[%emt 0:11:30]} 13. Bxg4 {[%emt 0:26:30]} Bxg4 {[%emt 0:00:30]} 14. f3 {[%emt 0:00:30]} Be6 {[%emt 0:00:30]} 15. Na3 {[%emt 0:03:30]} b6 {[%emt 0:22:30]} 16. Rac1 {[%emt 0:05:30]} Rc8 {[%emt 0:05:30]} 17. b3 {[%emt 0:04:40]} Rh8 18. Nc2 {[%emt 0:03:34]} Ne5 {[%emt 0:06:00]} 19. Nb4 {[%emt 0:04:25]} h4 {[%emt 0:01:41]} 20. Qf2 {[%emt 0:01:57]} h3 {[%emt 0:02:04]} 21. g3 {[%emt 0:02:34]} Kg8 {[%emt 0:05:57]} 22. Nbd5 {[%emt 0:01:52]} f5 {[%emt 0:04:10]} 23. Bg5 {[%emt 0:03:26]} Nc6 {[%emt 0:01:26]} 24. Nb5 {[%emt 0:02:13]} Qd7 {[%emt 0:02:03]} 25. Nxe7+ {[%emt 0:00:41]} Nxe7 {[%emt 0:02:31]} 26. Rxd6 {[%emt 0:00:10]} Qb7 {[%emt 0:00:37]} 27. Rxe6 {[%emt 0:00:13]} Nc6 {[%emt 0:00:09]} 28. Rd1 {[%emt 0:01:22]} Rf8 {[%emt 0:01:32]} 29. exf5 {[%emt 0:01:00]} Rxf5 {[%emt 0:01:14]} 30. Re8+ {[%emt 0:00:53]} Kh7 {[%emt 0:00:30]} 31. Rxh8+ {[%emt 0:00:00]} Kxh8 {[%emt 0:00:50]} 32. f4 {[%emt 0:00:58]} Ne5 {[%emt 0:01:41]} 33. Nd4 {[%emt 0:00:40]} Rf7 {[%emt 0:01:25]} 34. Qe2 {[%emt 0:00:40]} Nd7 {[%emt 0:00:33]} 35. Qf1 {[%emt 0:00:25]} Qe4 {[%emt 0:00:30]} 36. Nf3 {[%emt 0:00:55]} Qf5 {[%emt 0:00:24]} 37. Rd5 {[%emt 0:00:24]} Qe6 {[%emt 0:00:30]} 38. Rd1 {[%emt 0:00:00]} Qf5 {[%emt 0:00:13]} 39. Nh4 {[%emt 0:00:34]} Qe4 {[%emt 0:00:58]} 40. Qxh3 {[%emt 0:00:48]} Bd4+ {[%emt 0:00:06]} 41. Rxd4 {[%emt 0:00:32]} Qxd4+ {[%emt 0:00:57]} 42. Kh1 {[%emt 0:00:30]} Qd1+ {[%emt 0:00:00]} 43. Kg2 {[%emt 0:00:27]} Qe2+ {[%emt 0:00:20]} 44. Kg1 {[%emt 0:00:00]} Qe1+ {[%emt 0:00:25]} 45. Kg2 {[%emt 0:00:33]} Qe2+ {[%emt 0:00:00]} 1/2-1/2

[Event "FIDE World Cadets GU12 2022"]
[Site "Batumi"]
[Date "2022.09.16"]
[Round "1"]
[White "Alfano, Emilie"]
[Black "Celik, Fatma Nisa"]
[Result "1/2-1/2"]
[ECO "C06"]
[WhiteElo "1712"]
[BlackElo "1291"]
[Annotator "NA COMBH"]
[PlyCount "82"]
[EventDate "2022.09.16"]
[EventType "swiss"]
[EventCountry "GEO"]
[SourceTitle "playchess.com"]
[Source "ChessBase"]
[SourceQuality "1"]
[TimeControl "5400+30"]

1. e4 {[%emt 0:01:00]} e6 {[%emt 0:01:00]} 2. d4 {[%emt 0:00:30]} d5 {[%emt 0:00:30]} 3. Nd2 {[%emt 0:00:30]} Nf6 {[%emt 0:00:30]} 4. e5 {[%emt 0:00:00]} Nfd7 {[%emt 0:00:00]} 5. Bd3 {[%emt 0:00:00]} c5 {[%emt 0:01:00]} 6. c3 {[%emt 0:00:30]} Nc6 {[%emt 0:00:30]} 7. Ne2 {[%emt 0:00:30]} cxd4 {[%emt 0:01:30]} 8. cxd4 {[%emt 0:00:30]} Qb6 {[%emt 0:00:30]} 9. Nf3 {[%emt 0:01:30]} f6 {[%emt 0:07:30]} 10. exf6 {[%emt 0:00:30]} Bb4+ {[%emt 0:00:00]} 11. Bd2 {[%emt 0:00:30]} Nxf6 {[%emt 0:00:00]} 12. O-O {[%emt 0:00:30]} O-O {[%emt 0:01:30]} 13. a3 {[%emt 0:01:30]} Bd6 {[%emt 0:02:30]} 14. Qc2 {[%emt 0:00:30]} e5 {[%emt 0:09:30]} 15. dxe5 {[%emt 0:02:30]} Nxe5 {[%emt 0:03:30]} 16. Nxe5 {[%emt 0:07:30]} Bxe5 {[%emt 0:02:30]} 17. Nc3 {[%emt 0:07:30]} Be6 {[%emt 0:09:30]} 18. Na4 {[%emt 0:06:30]} Qd8 {[%emt 0:03:30]} 19. Nc5 {[%emt 0:08:30]} Bc8 {[%emt 0:04:30]} 20. Bg5 {[%emt 0:06:30]} Qd6 {[%emt 0:03:30]} 21. Bxf6 {[%emt 0:18:30]} Bxh2+ {[%emt 0:03:30]} 22. Kh1 {[%emt 0:00:30]} Rxf6 {[%emt 0:00:00]} 23. Bxh7+ {[%emt 0:20:49]} Kh8 {[%emt 0:01:00]} 24. Rfe1 {[%emt 0:04:06]} Be5 {[%emt 0:12:30]} 25. Kg1 {[%emt 0:01:04]} b6 {[%emt 0:07:30]} 26. Nb3 {[%emt 0:01:03]} Bb7 {[%emt 0:07:15]} 27. Bd3 {[%emt 0:00:33]} Bh2+ {[%emt 0:03:28]} 28. Kf1 {[%emt 0:01:13]} Bf4 {[%emt 0:03:05]} 29. Qe2 {[%emt 0:00:47]} Raf8 {[%emt 0:02:01]} 30. Qe7 {[%emt 0:01:28]} Qb8 {[%emt 0:05:09]} 31. Re6 {[%emt 0:03:10]} Bd6 {[%emt 0:01:58]} 32. Qd7 {[%emt 0:01:45]} Bc8 {[%emt 0:00:40]} 33. Qxd6 {[%emt 0:03:39]} Bxe6 {[%emt 0:02:12]} 34. Qxb8 {[%emt 0:00:13]} Rxb8 {[%emt 0:00:35]} 35. Nd4 {[%emt 0:00:09]} Rbf8 {[%emt 0:00:39]} 36. f3 {[%emt 0:00:25]} Bd7 {[%emt 0:01:09]} 37. Kf2 {[%emt 0:00:08]} g6 {[%emt 0:00:40]} 38. Rc1 {[%emt 0:00:19]} Rc8 {[%emt 0:00:28]} 39. Re1 {[%emt 0:00:23]} Re8 {[%emt 0:00:25]} 40. Rc1 {[%emt 0:00:30]} Rc8 {[%emt 0:00:30]} 41. Re1 {[%emt 0:00:30]} Re8 {[%emt 0:00:00]} 1/2-1/2

[Event "FIDE World Cadets GU12 2022"]
[Site "Batumi"]
[Date "2022.09.16"]
[Round "1"]
[White "Huseynova, Lala"]
[Black "Kong, Emma Zihan"]
[Result "1-0"]
[ECO "B90"]
[WhiteElo "1702"]
[BlackElo "1270"]
[Annotator "NA COMBH"]
[PlyCount "65"]
[EventDate "2022.09.16"]
[EventType "swiss"]
[EventCountry "GEO"]
[SourceTitle "playchess.com"]
[Source "ChessBase"]
[SourceQuality "1"]
[TimeControl "5400+30"]

1. e4 {[%emt 0:01:00]} c5 {[%emt 0:01:00]} 2. Nf3 {[%emt 0:00:30]} d6 {[%emt 0:00:30]} 3. d4 {[%emt 0:00:30]} cxd4 {[%emt 0:00:30]} 4. Nxd4 {[%emt 0:00:30]} Nf6 {[%emt 0:00:00]} 5. Nc3 {[%emt 0:00:00]} a6 {[%emt 0:00:00]} 6. Be3 {[%emt 0:00:00]} Nbd7 {[%emt 0:00:30]} 7. f3 {[%emt 0:03:30]} e6 {[%emt 0:06:30]} 8. g4 {[%emt 0:05:30]} h6 {[%emt 0:02:30]} 9. Qd2 {[%emt 0:07:30]} b5 {[%emt 0:12:30]} 10. a3 {[%emt 0:05:30]} Bb7 {[%emt 0:00:30]} 11. h4 {[%emt 0:14:30]} Be7 {[%emt 0:02:30]} 12. Rg1 {[%emt 0:01:30]} Nh7 {[%emt 0:02:30]} 13. g5 {[%emt 0:02:30]} hxg5 {[%emt 0:07:30]} 14. hxg5 {[%emt 0:00:30]} g6 {[%emt 0:03:30]} 15. Rh1 {[%emt 0:08:30]} Qc7 {[%emt 0:05:30]} 16. O-O-O {[%emt 0:06:30]} Rc8 {[%emt 0:04:30]} 17. Kb1 {[%emt 0:04:30]} Qa5 {[%emt 0:20:30]} 18. Nb3 {[%emt 0:01:30]} Qc7 {[%emt 0:01:30]} 19. Rh3 {[%emt 0:06:30]} Ndf8 {[%emt 0:05:30]} 20. Be2 {[%emt 0:07:30]} e5 {[%emt 0:02:30]} 21. f4 {[%emt 0:02:38]} Rd8 {[%emt 0:05:24]} 22. Nd5 {[%emt 0:12:05]} Bxd5 {[%emt 0:00:42]} 23. exd5 {[%emt 0:02:23]} exf4 {[%emt 0:01:15]} 24. Bxf4 {[%emt 0:00:44]} Qd7 {[%emt 0:00:52]} 25. Qe3 {[%emt 0:02:39]} Qf5 {[%emt 0:03:45]} 26. Re1 {[%emt 0:01:52]} Qd7 {[%emt 0:03:30]} 27. Nd4 {[%emt 0:00:39]} Rb8 {[%emt 0:02:48]} 28. Nc6 {[%emt 0:00:38]} Rb7 {[%emt 0:00:12]} 29. Bg4 {[%emt 0:01:06]} Qc7 {[%emt 0:01:49]} 30. Qe2 {[%emt 0:00:43]} Rg8 {[%emt 0:01:38]} 31. Nxe7 {[%emt 0:00:28]} Qxe7 {[%emt 0:00:19]} 32. Re3 {[%emt 0:00:07]} Ne6 {[%emt 0:01:15]} 33. dxe6 {[%emt 0:00:09]} 1-0